Workbook

Sheet 车辆信息表
A1: 附件
A2: 2019年及以前年度新能源汽车推广应用补助资金公示车辆信息表
A3: 年度 | B3: 序号 | C3: 车辆生产企业 | D3: 车辆型号 | E3: 企业申报新能源汽车（辆） | F3: 企业申请补助资金（万元） | G3: 地方审核情况 | H3: 地方实地核查情况 | I3: 地方拟申报新能源汽车（辆） | J3: 地方拟申请补助资金 （万元） | K3: 备注
A4: 总计 | E4: =E5+E86+E203+E275 -> 14553 | F4: =F5+F86+F203+F275 -> 227277.7931 | I4: =I5+I86+I203+I275 -> 14547 | J4: =J5+J86+J203+J275 -> 226977.793
A5: 2019年 | B5: 合计 | E5: =E6+E70+E80+E83 -> 2341 | F5: =F6+F70+F80+F83 -> 32265.6634 | I5: =I6+I70+I80+I83 -> 2341 | J5: =J6+J70+J80+J83 -> 32265.6634
B6: 1 | C6: 中通客车控股股份有限公司 | D6: 小计 | E6: 2184 | F6: 31059.3599 | G6: 提交资料符合申报要求，审核通过 | H6: 实地核查通过 | I6: 2184 | J6: 31059.3599
D7: LCK6850EVG3M1 | E7: 15 | F7: 130.68 | G7: 提交资料符合申报要求，审核通过 | I7: 15 | J7: 130.68
D8: LCK6809EVG3A11 | E8: 2 | F8: 17.424 | I8: 2 | J8: 17.424
D9: LCK6809EVG3A11 | E9: 10 | F9: 145.2 | I9: 10 | J9: 145.2
D10: LCK6108EVG3A7 | E10: 100 | F10: 1306.8 | I10: 100 | J10: 1306.8
D11: LCK6808EVQGA3 | E11: 73 | F11: 1059.96 | I11: 73 | J11: 1059.96
D12: LCK6117EVGA3 | E12: 4 | F12: 52.272 | I12: 4 | J12: 52.272
D13: LCK6900FCEVG4 | E13: 30 | F13: 1500 | H13: 实地核查通过 | I13: 30 | J13: 1500 | K13: 实地核查10辆
D14: LCK6809EVG3A6 | E14: 224 | F14: 3252.48 | I14: 224 | J14: 3252.48
D15: LCK6808EVQA1 | E15: 3 | F15: 39.6 | I15: 3 | J15: 39.6
D16: LCK6809EVG3A6 | E16: 7 | F16: 60.984 | I16: 7 | J16: 60.984
D17: LCK6809EVG3A5 | E17: 10 | F17: 136 | I17: 10 | J17: 136
D18: LCK6808EVQGA1 | E18: 25 | F18: 330 | I18: 25 | J18: 330
D19: LCK6108EVG3A3 | E19: 27 | F19: 588.06 | I19: 27 | J19: 588.06
D20: LCK6108EVG3A2 | E20: 235 | F20: 5118.3 | I20: 235 | J20: 5118.3
D21: LCK6108EVG3A3 | E21: 42 | F21: 548.856 | I21: 42 | J21: 548.856
D22: LCK6127PHEVNC | E22: 91 | F22: 209.0907 | I22: 91 | J22: 209.0907
D23: LCK6120EVG3A1 | E23: 19 | F23: 376.2 | I23: 19 | J23: 376.2
D24: LCK6117EVGA | E24: 17 | F24: 336.6 | I24: 17 | J24: 336.6
D25: LCK6108EVG3A1 | E25: 1 | F25: 21.78 | I25: 1 | J25: 21.78
D26: LCK6809EVG3D6 | E26: 6 | F26: 87.12 | I26: 6 | J26: 87.12
D27: LCK6117EVGD | E27: 1 | F27: 19.8 | I27: 1 | J27: 19.8
D28: LCK6117EVA | E28: 2 | F28: 39.6 | I28: 2 | J28: 39.6
D29: LCK6117EVA | E29: 4 | F29: 47.52 | I29: 4 | J29: 47.52
D30: LCK5048XXYEVH2H | E30: 2 | F30: 12.316 | I30: 2 | J30: 12.316
D31: LCK5048XXYEVH3H | E31: 2 | F31: 12.0832 | I31: 2 | J31: 12.0832
D32: LCK6108EVG3A1 | E32: 10 | F32: 130.68 | I32: 10 | J32: 130.68
D33: LCK6809EVG3A7 | E33: 140 | F33: 2032.8 | I33: 140 | J33: 2032.8
D34: LCK6809EVG3A7 | E34: 57 | F34: 496.584 | I34: 57 | J34: 496.584
D35: LCK6808EVQA11 | E35: 20 | F35: 158.4 | I35: 20 | J35: 158.4
D36: LCK6108EVG3A4 | E36: 84 | F36: 1829.52 | I36: 84 | J36: 1829.52
D37: LCK6809EVG3X2 | E37: 1 | F37: 14.52 | I37: 1 | J37: 14.52
D38: LCK6117EVA1 | E38: 1 | F38: 19.8 | I38: 1 | J38: 19.8
D39: LCK6816EVGA | E39: 141 | F39: 2047.32 | I39: 141 | J39: 2047.32
D40: LCK6809EVG3L2 | E40: 1 | F40: 14.52 | I40: 1 | J40: 14.52
D41: LCK6840EVG3T1 | E41: 1 | F41: 14.52 | I41: 1 | J41: 14.52
D42: LCK6850EVG3A2 | E42: 22 | F42: 290.4 | I42: 22 | J42: 290.4
D43: LCK6107PHEVCNG23 | E43: 15 | F43: 67.5 | I43: 15 | J43: 67.5
D44: LCK6809EVG3A9 | E44: 89 | F44: 775.368 | I44: 89 | J44: 775.368
D45: LCK6809EVG3A9 | E45: 93 | F45: 1350.36 | I45: 93 | J45: 1350.36
D46: LCK6669EVGC | E46: 15 | F46: 99.825 | I46: 15 | J46: 99.825
D47: LCK6117EVGA1 | E47: 18 | F47: 392.04 | I47: 18 | J47: 392.04
D48: LCK6826EVGA1 | E48: 57 | F48: 827.64 | H48: 实地核查通过 | I48: 57 | J48: 827.64 | K48: 实地核查20辆
D49: LCK6669EVGB | E49: 67 | F49: 445.885 | I49: 67 | J49: 445.885
D50: LCK6806EVGA | E50: 101 | F50: 1466.52 | I50: 101 | J50: 1466.52
D51: LCK6108EVG3A6 | E51: 7 | F51: 152.46 | I51: 7 | J51: 152.46
D52: LCK6108EVG3A6 | E52: 28 | F52: 365.904 | I52: 28 | J52: 365.904
D53: LCK6808EVQGA2 | E53: 1 | F53: 14.52 | I53: 1 | J53: 14.52
D54: LCK6806EVGA | E54: 15 | F54: 130.68 | I54: 15 | J54: 130.68
D55: LCK6108EVG3A4 | E55: 55 | F55: 718.74 | I55: 55 | J55: 718.74
D56: LCK6816EVGA | E56: 28 | F56: 243.936 | I56: 28 | J56: 243.936
D57: LCK6826EVG3A1 | E57: 1 | F57: 8.712 | I57: 1 | J57: 8.712
D58: LCK6808EVQGA2 | E58: 11 | F58: 95.832 | I58: 11 | J58: 95.832
D59: LCK6108EVG3A2 | E59: 13 | F59: 169.884 | I59: 13 | J59: 169.884
D60: LCK6826EVGA1 | E60: 31 | F60: 270.072 | I60: 31 | J60: 270.072
D61: LCK6826EVGA1 | E61: 1 | F61: 5.5 | I61: 1 | J61: 5.5
D62: LCK6117EVGA4 | E62: 5 | F62: 59.4 | I62: 5 | J62: 59.4
D63: LCK6828EVQGA1 | E63: 10 | F63: 87.12 | I63: 10 | J63: 87.12
D64: LCK6107PHEVCG21 | E64: 19 | F64: 68.4 | I64: 19 | J64: 68.4
D65: LCK6850EVGA1 | E65: 17 | F65: 134.64 | I65: 17 | J65: 134.64
D66: LCK6809EVG3A12 | E66: 1 | F66: 8.712 | I66: 1 | J66: 8.712
D67: LCK6117EVGA | E67: 2 | F67: 23.76 | I67: 2 | J67: 23.76
D68: LCK6850EVG3A2 | E68: 16 | F68: 126.72 | I68: 16 | J68: 126.72
D69: LCK6120EVG3A3 | E69: 38 | F69: 451.44 | I69: 38 | J69: 451.44
B70: 2 | C70: 山东蓝诺汽车有限公司 | D70: 小计 | E70: 87 | F70: 144.7385 | G70: 提交资料符合申报要求，审核通过 | H70: 实地核查通过 | I70: 87 | J70: 144.7385
D71: JHN5024CCXXYBEV2 | E71: 28 | F71: 7.518 | G71: 提交资料符合申报要求，审核通过 | I71: 28 | J71: 7.518
D72: JHN5032CGXSHBEV2 | E72: 17 | F72: 19.0587 | I72: 17 | J72: 19.0587
D73: JHN5032CGXSHBEV1 | E73: 5 | F73: 9.2925 | I73: 5 | J73: 9.2925
D74: JHN5024CCXXYBEV2 | E74: 17 | F74: 45.645 | I74: 17 | J74: 45.645
D75: JHN5032CGXSHBEV1 | E75: 12 | F75: 37.17 | I75: 12 | J75: 37.17
D76: JHN5031CDXXYBEV1 | E76: 1 | F76: 3.231 | I76: 1 | J76: 3.231
D77: JHN1024CCBEV1 | E77: 4 | F77: 13.02 | I77: 4 | J77: 13.02
D78: JHN5024CCXXYBEV1 | E78: 2 | F78: 6.51 | I78: 2 | J78: 6.51
D79: JHN5024CCXXYBEV3 | E79: 1 | F79: 3.2933 | I79: 1 | J79: 3.2933
B80: 3 | C80: 烟台舒驰客车有限责任公司 | D80: 小计 | E80: =E81+E82 -> 9 | F80: 30.645 | G80: 提交资料符合申报要求，审核通过 | H80: 实地核查通过 | I80: =I81+I82 -> 9 | J80: 30.645
D81: YTK5040XXYEV2 | E81: 5 | F81: 28.375 | G81: 提交资料符合申报要求，审核通过 | I81: 5 | J81: 28.375
D82: YTK5040XXYEV2 | E82: 4 | F82: 2.27 | I82: 4 | J82: 2.27
B83: 4 | C83: 中国重汽集团济南豪沃客车有限公司 | D83: 小计 | E83: 61 | F83: 1030.92 | G83: 提交资料符合申报要求，审核通过 | H83: 实地核查通过 | I83: 61 | J83: 1030.92
D84: JK6806GBEVQ4 | E84: 41 | F84: 595.32 | G84: 提交资料符合申报要求，审核通过 | I84: 41 | J84: 595.32
D85: JK6106GBEVQ5 | E85: 20 | F85: 435.6 | I85: 20 | J85: 435.6
A86: 2018年 | B86: 合计 | E86: =E87+E166+E183+E193 -> 6487 | F86: =F87+F166+F183+F193 -> 98907.6424 | I86: =I87+I166+I183+I193 -> 6487 | J86: =J87+J166+J183+J193 -> 98907.6424
B87: 1 | C87: 中通客车控股股份有限公司 | D87: 小计 | E87: 4721 | F87: 76039.2118 | G87: 提交资料符合申报要求，审核通过 | H87: 实地核查通过 | I87: 4721 | J87: 76039.2118
D88: LCK6119PHEVG | E88: 1 | F88: 5.2206 | G88: 提交资料符合申报要求，审核通过 | I88: 1 | J88: 5.2206
D89: LCK6809EVG3A2 | E89: 19 | F89: 266 | I89: 19 | J89: 266
D90: LCK6809EVG3A1 | E90: 2 | F90: 28 | I90: 2 | J90: 28
D91: LCK6809EVGT | E91: 94 | F91: 1316 | I91: 94 | J91: 1316
D92: LCK6813EVGA | E92: 14 | F92: 194.922 | I92: 14 | J92: 194.922
D93: LCK6811EVGC | E93: 20 | F93: 280 | I93: 20 | J93: 280
D94: LCK6127PHEVNG3 | E94: 3 | F94: 45 | I94: 3 | J94: 45
D95: LCK6850PHEVNG4 | E95: 8 | F95: 49.728 | I95: 8 | J95: 49.728
D96: LCK6813EVGA | E96: 1 | F96: 19.89 | I96: 1 | J96: 19.89
D97: LCK6108EV3 | E97: 1 | F97: 20.8958 | I97: 1 | J97: 20.8958
D98: LCK6607DEVQG | E98: 9 | F98: 56.7 | I98: 9 | J98: 56.7
D99: LCK6809EVGM1 | E99: 2 | F99: 28 | I99: 2 | J99: 28
D100: LCK6117EVG8 | E100: 1 | F100: 30 | I100: 1 | J100: 30
D101: LCK6108EVG15 | E101: 56 | F101: 1176 | I101: 56 | J101: 1176
D102: LCK6808EVQGA | E102: 54 | F102: 756 | I102: 54 | J102: 756
D103: LCK6809EVGK | E103: 58 | F103: 812 | I103: 58 | J103: 812
D104: LCK6809EVGL | E104: 168 | F104: 2352 | I104: 168 | J104: 2352
D105: LCK6108EVG12 | E105: 36 | F105: 756 | I105: 36 | J105: 756
D106: LCK6809EVGL | E106: 14 | F106: 280 | I106: 14 | J106: 280
D107: LCK6808EVQA | E107: 9 | F107: 126 | I107: 9 | J107: 126
D108: LCK6809EVGT1 | E108: 53 | F108: 742 | I108: 53 | J108: 742
D109: LCK6809EVGM4 | E109: 16 | F109: 224 | I109: 16 | J109: 224
D110: LCK6108EVG17 | E110: 17 | F110: 357 | I110: 17 | J110: 357
D111: LCK6108EVG16 | E111: 36 | F111: 756 | I111: 36 | J111: 756
D112: LCK6809EVGD | E112: 30 | F112: 420 | I112: 30 | J112: 420
D113: LCK6108EVGL | E113: 17 | F113: 357 | I113: 17 | J113: 357
D114: LCK6809EVGM5 | E114: 174 | F114: 2436 | I114: 174 | J114: 2436
D115: LCK6108EVGL2 | E115: 3 | F115: 63 | I115: 3 | J115: 63
D116: LCK6105FCEVG1 | E116: 38 | F116: 1900 | I116: 38 | J116: 1900
D117: LCK6809EVG3A5 | E117: 92 | F117: 1251.2 | I117: 92 | J117: 1251.2
D118: LCK6808EVQA1 | E118: 63 | F118: 831.6 | I118: 63 | J118: 831.6
D119: LCK6809EVG3A6 | E119: 425 | F119: 6171 | I119: 425 | J119: 6171
D120: LCK6808EVQGA1 | E120: 132 | F120: 1742.4 | I120: 132 | J120: 1742.4
D121: LCK6108EVG3A3 | E121: 422 | F121: 9191.16 | I121: 422 | J121: 9191.16
D122: LCK6117EVGA | E122: 88 | F122: 1742.4 | I122: 88 | J122: 1742.4
D123: LCK5048XXYEVH2H | E123: 49 | F123: 301.742 | I123: 49 | J123: 301.742
D124: LCK5025XXYEV1 | E124: 35 | F124: 114.8175 | I124: 35 | J124: 114.8175
D125: LCK6809EVG3D5 | E125: 20 | F125: 281.014 | I125: 20 | J125: 281.014
D126: LCK6107PHEVNG2 | E126: 25 | F126: 187.5 | I126: 25 | J126: 187.5
D127: LCK6809EVG3F2 | E127: 65 | F127: 943.8 | I127: 65 | J127: 943.8
D128: LCK6108EVG3A1 | E128: 91 | F128: 1981.98 | I128: 91 | J128: 1981.98
D129: LCK6108EVG3A2 | E129: 205 | F129: 4464.9 | I129: 205 | J129: 4464.9
D130: LCK6127PHEVNG2 | E130: 57 | F130: 427.5 | I130: 57 | J130: 427.5
D131: LCK6723EVGA | E131: 2 | F131: 11 | I131: 2 | J131: 11
D132: LCK6117EVA | E132: 35 | F132: 693 | I132: 35 | J132: 693
D133: LCK6809EVG3D6 | E133: 32 | F133: 464.64 | I133: 32 | J133: 464.64
D134: LCK6120EVG3A1 | E134: 84 | F134: 1663.2 | I134: 84 | J134: 1663.2
D135: LCK5024XXYEV8 | E135: 20 | F135: 66.916 | I135: 20 | J135: 66.916
D136: LCK5047XXYEV7 | E136: 13 | F136: 73.2173 | I136: 13 | J136: 73.2173
D137: LCK6809EVG3A3 | E137: 20 | F137: 264 | I137: 20 | J137: 264
D138: LCK6108EVG12 | E138: 10 | F138: 180 | I138: 10 | J138: 180
D139: LCK6850EVGA1 | E139: 10 | F139: 132 | I139: 10 | J139: 132
D140: LCK5048XXYEVH3H | E140: 13 | F140: 78.5408 | I140: 13 | J140: 78.5408
D141: LCK6809EVGK | E141: 2 | F141: 22.3028 | I141: 2 | J141: 22.3028
D142: LCK6809EVG3A7 | E142: 422 | F142: 6127.44 | I142: 422 | J142: 6127.44
D143: LCK6668EVGA | E143: 27 | F143: 163.35 | I143: 27 | J143: 163.35
D144: LCK6669EVGA | E144: 16 | F144: 96.8 | I144: 16 | J144: 96.8
D145: LCK6127PHEVNG31 | E145: 36 | F145: 270 | I145: 36 | J145: 270
D146: LCK6108EVG3D2 | E146: 126 | F146: 2744.28 | I146: 126 | J146: 2744.28
D147: LCK6808EVQA11 | E147: 5 | F147: 66 | I147: 5 | J147: 66
D148: LCK6108EVG3A4 | E148: 40 | F148: 871.2 | I148: 40 | J148: 871.2
D149: LCK6117EVGA2 | E149: 4 | F149: 79.2 | I149: 4 | J149: 79.2
D150: LCK6816EVGA | E150: 457 | F150: 6635.64 | I150: 457 | J150: 6635.64
D151: LCK6108EVG3A5 | E151: 44 | F151: 958.32 | I151: 44 | J151: 958.32
D152: LCK6850EVG3A2 | E152: 56 | F152: 739.2 | I152: 56 | J152: 739.2
D153: LCK6815EVGA | E153: 4 | F153: 58.08 | I153: 4 | J153: 58.08
D154: LCK6809EVG3L2 | E154: 35 | F154: 508.2 | I154: 35 | J154: 508.2
D155: LCK6120EVG3D1 | E155: 119 | F155: 2356.2 | I155: 119 | J155: 2356.2
D156: LCK6809EVG3A4 | E156: 58 | F156: 842.16 | I156: 58 | J156: 842.16
D157: LCK6669EVGC | E157: 21 | F157: 139.755 | I157: 21 | J157: 139.755
D158: LCK6669EVGB | E158: 19 | F158: 126.445 | I158: 19 | J158: 126.445
D159: LCK6806EVGL | E159: 59 | F159: 856.68 | I159: 59 | J159: 856.68
D160: LCK6809EVG3A9 | E160: 77 | F160: 1118.04 | I160: 77 | J160: 1118.04
D161: LCK6826EVGA1 | E161: 50 | F161: 726 | I161: 50 | J161: 726
D162: LCK6117EVGA1 | E162: 24 | F162: 522.72 | I162: 24 | J162: 522.72
D163: LCK6668EVGC | E163: 13 | F163: 86.515 | I163: 13 | J163: 86.515
D164: LCK6120EVG3A2 | E164: 30 | F164: 594 | I164: 30 | J164: 594
D165: LCK6806EVGA | E165: 15 | F165: 217.8 | I165: 15 | J165: 217.8
B166: 2 | C166: 山东蓝诺汽车有限公司 | D166: 小计 | E166: 379 | F166: 1089.3478 | G166: 提交资料符合申报要求，审核通过 | H166: 实地核查通过 | I166: 379 | J166: 1089.3478
D167: KRD5022CCYBEV | E167: 6 | F167: 11.3184 | G167: 提交资料符合申报要求，审核通过 | I167: 6 | J167: 11.3184
D168: KRD5022XXYBEV | E168: 38 | F168: 71.6832 | I168: 38 | J168: 71.6832
D169: KRD5022CCYBEV02 | E169: 41 | F169: 92.2992 | I169: 41 | J169: 92.2992
D170: KRD5022XXYBEV02 | E170: 76 | F170: 171.0912 | I170: 76 | J170: 171.0912
D171: JHN1024CCBEV2 | E171: 17 | F171: 45.645 | H171: 实地核查通过 | I171: 17 | J171: 45.645 | K171: 实地核查1辆
D172: JHN5024CCXXYBEV2 | E172: 70 | F172: 187.95 | H172: 实地核查通过 | I172: 70 | J172: 187.95 | K172: 实地核查1辆
D173: KRD5022XXYBEV | E173: 8 | F173: 21.48 | I173: 8 | J173: 21.48
D174: JHN5031CDXXYBEV1 | E174: 19 | F174: 61.3738 | I174: 19 | J174: 61.3738
D175: JHN1024CCBEV1 | E175: 5 | F175: 16.275 | I175: 5 | J175: 16.275
D176: JHN5024CCXXYBEV1 | E176: 17 | F176: 55.335 | I176: 17 | J176: 55.335
D177: KRD5022CCYBEV02 | E177: 17 | F177: 55.335 | I177: 17 | J177: 55.335
D178: KRD5022XXYBEV02 | E178: 26 | F178: 84.63 | I178: 26 | J178: 84.63
D179: KRD5022CCYBEV | E179: 1 | F179: 4.716 | I179: 1 | J179: 4.716
D180: KRD5022XXYBEV | E180: 4 | F180: 18.864 | I180: 4 | J180: 18.864
D181: KRD5022CCYBEV02 | E181: 6 | F181: 33.768 | I181: 6 | J181: 33.768
D182: KRD5022XXYBEV02 | E182: 28 | F182: 157.584 | I182: 28 | J182: 157.584
B183: 3 | C183: 烟台舒驰客车有限责任公司 | D183: 小计 | E183: =SUM(E184:E192) -> 405 | F183: 7125.2828 | G183: 提交资料符合申报要求，审核通过 | H183: 实地核查通过 | I183: =SUM(I184:I192) -> 405 | J183: 7125.2828
D184: YTK5040XXYEV2 | E184: 1 | F184: 3.76 | G184: 提交资料符合申报要求，审核通过 | I184: 1 | J184: 3.76
D185: YTK5040XXYEV6 | E185: 4 | F185: 22.6584 | I185: 4 | J185: 22.6584
D186: YTK5040XXYEV2 | E186: 32 | F186: 181.6 | I186: 32 | J186: 181.6
D187: YTK5040XXYEV11 | E187: 2 | F187: 11.6672 | I187: 2 | J187: 11.6672
D188: YTK5040XXYEV2 | E188: 64 | F188: 601.6 | I188: 64 | J188: 601.6
D189: YTK6118EV9 | E189: 135 | F189: 4031.37 | I189: 135 | J189: 4031.37
D190: YTK6118EV9 | E190: 8 | F190: 167.2272 | I190: 8 | J190: 167.2272
D191: YTK6110EV | E191: 1 | F191: 19.8 | I191: 1 | J191: 19.8
D192: YTK6830GEV6 | E192: 158 | F192: 2085.6 | I192: 158 | J192: 2085.6
B193: 4 | C193: 中国重汽集团济南豪沃客车有限公司 | D193: 小计 | E193: 982 | F193: 14653.8 | G193: 提交资料符合申报要求，审核通过 | H193: 实地核查通过 | I193: 982 | J193: 14653.8
D194: JK6126GPHEVN5Q2 | E194: 60 | F194: 630 | I194: 60 | J194: 630
D195: JK6106GPHEVN5Q2 | E195: 209 | F195: 2194.5 | I195: 209 | J195: 2194.5
D196: JK6806GBEVQ3 | E196: 101 | F196: 1212 | I196: 101 | J196: 1212
D197: JK6126GBEVQ1 | E197: 51 | F197: 1009.8 | I197: 51 | J197: 1009.8
D198: JK6106GBEVQ4 | E198: 400 | F198: 8400 | H198: 实地核查通过 | I198: 400 | J198: 8400 | K198: 实地核查6辆
D199: JK6126GPHEVN5Q2 | E199: 45 | F199: 337.5 | I199: 45 | J199: 337.5
D200: JK6106GPHEVN5Q2 | E200: 25 | F200: 187.5 | I200: 25 | J200: 187.5
... 101 more rows
